bitfinex/quotes_ETHUSD_20241124
["timestamp","ask_amount","ask_price","bid_price","bid_amount"]
[1732474323309,3.78112,3324.0,3323.4,3.00896]
[1732474323641,0.4131222,3323.9,3323.4,3.00896]
[1732474323847,0.7727,3323.8,3323.4,3.00896]
[1732474324603,0.7727,3323.8,3323.6,3.00873]
[1732474325335,0.7727,3323.8,3323.7,0.03925113]
[1732474326358,0.7727,3323.8,3323.4,3.00896]
[1732474326848,0.7727,3323.8,3323.5,0.03925113]
[1732474327323,3.78136,3323.8,3323.5,0.03925113]
[1732474327526,0.378136,3323.7,3323.2,3.00914]
[1732474327722,0.378136,3323.7,3323.1,3.00922]
[1732474327723,0.378136,3323.7,3323.3,3.04827517]
[1732474327928,0.7727,3323.8,3323.3,0.03930517]
[1732474328214,3.00807,3324.4,3323.3,0.03930517]
[1732474328215,3.0,3324.5,3324.0,3.00835]
[1732474328451,0.7603,3324.7,3324.1,3.00832]
[1732474328746,1.09238458,3324.7,3324.2,3.00821]
[1732474329052,0.7603,3324.7,3324.3,3.00809]
[1732474329345,0.7603,3324.7,3324.3,0.03912832]
[1732474329718,0.7603,3324.7,3324.1,3.00826]
[1732474329909,3.7603,3324.7,3324.2,3.04725517]
[1732474330110,0.6768,3324.6,3324.2,3.04725517]
[1732474330963,3.00755,3325.0,3324.2,3.04725517]
[1732474330964,0.7603,3325.1,3324.6,3.0078]
[1732474331254,3.76775,3325.1,3324.5,3.00794]
[1732474331421,3.76775,3325.1,3323.8,3.0086]
[1732474331422,3.00823,3324.3,3323.5,0.8228]
[1732474331620,3.7686,3324.2,3323.5,3.00881]
[1732474331821,0.37686,3324.1,3323.8,3.00857]
[1732474332153,0.7603,3324.2,3323.8,3.00857]
[1732474332506,0.7603,3324.2,3323.6,3.00876]
[1732474332507,0.7603,3324.2,3323.9,3.00846]
[1732474333112,3.00789,3324.6,3324.1,3.00824]
[1732474333113,0.7603,3324.6,3324.1,3.00824]
[1732474333312,0.7603,3324.6,3324.2,3.00823]
[1732474333957,3.0,3324.9,3324.3,3.00814]
[1732474334271,0.7603,3324.9,3324.4,3.00798]
[1732474334435,0.7603,3324.9,3324.6,3.00787]
[1732474335250,0.7603,3324.9,3324.4,3.83078]
[1732474335544,0.7603,3324.9,3324.4,3.00798]
[1732474335927,0.7603,3325.3,3324.3,0.0300805]
[1732474336134,0.7603,3325.3,3324.8,3.00764]
[1732474336353,0.7603,3325.3,3325.1,3.00735]
[1732474336557,0.7603,3325.6,3325.2,3.00728]
[1732474337176,0.7603,3325.6,3325.0,3.00748]
[1732474337530,0.37672,3325.5,3324.9,0.8228]
[1732474337833,3.38384,3325.5,3324.9,3.00754]
[1732474338057,0.714414,3325.4,3324.9,3.00754]
[1732474338458,0.714414,3325.4,3325.0,3.00751]
[1732474339047,0.37672,3325.5,3325.2,3.00733]
[1732474339247,0.7603,3325.6,3324.8,3.83049]
[1732474339576,3.0,3325.9,3324.8,3.83049]
[1732474339577,0.7603,3325.9,3325.4,3.00709]
[1732474339867,0.7603,3325.9,3325.5,3.00704]
[1732474340078,0.7603,3325.9,3325.6,3.00695]
[1732474340260,3.76677,3326.2,3325.6,3.04123647]
[1732474340467,0.4207678,3326.1,3325.7,3.0068]
[1732474340774,0.7603,3326.2,3325.8,0.03424233]
[1732474341140,0.7603,3326.2,3325.6,3.00695]
[1732474341344,0.7603,3326.5,3325.9,0.03412952]
[1732474341543,0.7603,3326.5,3325.8,2.7061]
[1732474341840,3.76648,3326.5,3326.0,0.03412952]
[1732474342084,0.7973583,3326.4,3325.9,0.0333104]
[1732474342245,0.7973583,3326.4,3325.6,2.70621]
[1732474342588,0.7603,3326.5,3325.6,2.70621]
[1732474342589,3.00635,3326.3,3325.6,2.70621]
[1732474342742,3.00635,3326.3,3325.7,0.0333104]
[1732474343087,3.00641,3326.3,3325.7,0.0333104]
[1732474343266,6.76652,3326.5,3325.7,0.0333104]
[1732474343445,0.7967553,3326.4,3325.7,2.70619]
[1732474343866,0.7967553,3326.4,3325.8,0.0333104]
[1732474344351,0.7967553,3326.4,3325.9,2.706]
[1732474344561,0.7603,3326.5,3326.0,2.70595]
[1732474344788,0.7603,3326.5,3326.0,2.73925059]
[1732474347062,0.7603,3326.5,3326.1,2.70586]
[1732474347551,0.8275,3326.8,3326.3,2.70569]
[1732474347752,3.8332,3327.1,3326.4,2.70562]
[1732474347967,0.59361855,3327.0,3326.4,2.73873429]
[1732474348158,0.8275,3327.1,3326.4,2.73873429]
[1732474348571,3.83312,3327.1,3326.4,2.70562]
[1732474348801,3.83312,3327.1,3326.3,0.7503]
[1732474348802,0.8275,3327.1,3326.3,0.7503]
[1732474349088,0.8275,3327.1,3326.5,0.03304076]
[1732474349295,0.8275,3327.1,3326.3,0.7503]
[1732474349471,0.8275,3327.1,3326.6,0.03304076]
[1732474349654,3.0058,3326.9,3326.1,2.70583]
[1732474349859,1.12808,3326.8,3326.7,0.03304076]
[1732474350060,1.12808,3326.8,3326.0,3.45623]
[1732474350260,1.12808,3326.8,3326.7,0.03301136]
[1732474350490,1.12808,3326.8,3326.0,3.45623]
[1732474350691,0.8275,3326.8,3326.7,0.03301136]
[1732474350887,3.83345,3326.8,3326.0,3.45623]
[1732474351419,3.83345,3326.8,3326.1,0.03301136]
[1732474351563,3.83345,3326.8,3326.1,2.73886136]
[1732474352666,3.83345,3326.8,3326.1,0.03301136]
[1732474352994,0.383345,3326.7,3326.1,0.03301136]
[1732474353572,0.8275,3326.8,3326.1,0.03301136]
[1732474353771,3.83339,3326.8,3326.1,2.73888136]
[1732474354106,0.8275,3326.8,3326.2,2.70577]
[1732474354400,3.83342,3326.8,3326.3,0.03272702]
[1732474354590,3.389331,3326.7,3326.3,0.03272702]
[1732474354791,0.383331,3326.7,3326.0,3.45625]
[1732474355096,3.00598,3326.7,3326.4,0.03272702]
[1732474355403,3.00598,3326.7,3326.5,0.03272702]
[1732474355563,3.00607,3326.6,3326.5,0.03272702]
[1732474355763,3.00607,3326.6,3326.0,0.7503]
[1732474355764,3.389427,3326.6,3326.0,0.7503]
[1732474356364,0.383357,3326.6,3326.0,3.4562]
[1732474356573,0.8275,3326.8,3326.2,2.70576]
[1732474356767,0.8275,3327.1,3326.2,2.70576]
[1732474356962,0.50227928,3327.0,3326.4,2.70562]
[1732474357162,3.0,3327.2,3326.7,3.51787]
[1732474357466,3.8322,3327.4,3326.7,3.51784]
[1732474357666,0.383748,3327.3,3326.7,3.51784]
[1732474358177,0.803,3326.7,3326.0,0.03005776]
[1732474358520,0.803,3326.7,3325.3,3.477]
[1732474358521,3.00662,3326.0,3325.3,3.477]
[1732474358866,3.00643,3326.2,3325.3,3.477]
[1732474359071,3.00653,3326.1,3325.3,3.477]
[1732474360037,3.00653,3326.1,3325.4,2.70643]
[1732474361394,3.00662,3326.0,3325.3,0.7705]
[1732474361716,3.00671,3325.9,3325.3,0.7705]
[1732474361926,3.00671,3325.9,3325.3,3.477]
[1732474362089,3.00671,3325.9,3325.3,0.7705]
[1732474363676,3.80971,3325.9,3325.3,0.7705]
[1732474364721,3.0069,3325.7,3325.1,0.7705]
[1732474367401,4.491334,3325.9,3325.1,3.47717]
[1732474367922,3.00686,3325.8,3325.1,3.47717]
[1732474370213,3.00686,3325.8,3325.2,0.02804654]
[1732474372536,4.491334,3325.9,3325.2,0.02804654]
[1732474372835,3.00706,3325.6,3325.2,0.02804654]
[1732474373032,3.00724,3325.3,3325.2,0.02804654]
[1732474373203,3.00724,3325.3,3324.8,0.8227]
[1732474373401,3.00724,3325.3,3325.2,0.02807106]
[1732474373637,3.00724,3325.3,3324.8,0.8227]
[1732474373798,3.00724,3325.3,3325.2,0.02807106]
[1732474374001,3.00724,3325.3,3324.8,0.8227]
[1732474374002,3.608678,3325.3,3324.8,0.8227]
[1732474374203,3.00724,3325.3,3325.2,0.02807106]
[1732474374400,3.00724,3325.3,3324.8,0.8227]
[1732474374703,3.00724,3325.3,3325.2,0.02807106]
[1732474374905,3.00724,3325.3,3324.8,0.8227]
[1732474375102,3.00724,3325.3,3325.2,0.02807106]
[1732474375617,3.00724,3325.3,3324.8,0.8227]
[1732474375914,3.00734,3325.2,3324.8,0.8227]
[1732474376936,0.817,3325.4,3324.8,0.8227]
[1732474376937,3.82422,3325.4,3324.8,0.8227]
[1732474378050,3.00716,3325.4,3324.8,3.52962]
[1732474378336,3.00716,3325.4,3324.9,0.7724]
[1732474378553,3.0071,3325.5,3324.9,0.7724]
[1732474379215,3.00716,3325.4,3324.9,0.7724]
[1732474380451,6.01439,3325.4,3324.9,0.7724]
[1732474380683,3.00716,3325.4,3324.9,0.7724]
[1732474380957,3.00734,3325.2,3324.9,0.7724]
[1732474381314,3.00716,3325.4,3324.9,0.7724]
[1732474381636,3.00733,3325.2,3324.9,0.7724]
[1732474385259,3.00733,3325.2,3325.0,0.02821816]
[1732474386379,3.00742,3325.1,3325.0,0.02821816]
[1732474386698,3.00787,3324.7,3323.9,0.7724]
[1732474386854,3.00789,3324.6,3324.0,2.70757]
[1732474387037,3.00789,3324.6,3324.0,2.73596961]
[1732474387370,0.777,3324.8,3324.0,2.73590961]
[1732474387670,3.00785,3324.7,3324.2,0.8079]
[1732474387876,3.00758,3325.0,3324.2,3.51531]
[1732474388168,3.00779,3324.7,3324.2,0.8079]
[1732474388377,3.00777,3324.8,3324.3,0.02845847]
[1732474388772,3.00787,3324.7,3324.2,0.8079]
[1732474388974,3.00787,3324.7,3324.4,0.02845847]
[1732474389149,3.00787,3324.7,3324.3,0.02855167]
[1732474389486,3.00787,3324.7,3324.2,0.8079]
[1732474389656,3.00787,3324.7,3324.4,0.02891467]
[1732474389838,3.00787,3324.7,3324.2,0.8079]
[1732474390042,3.00791,3324.6,3324.5,0.02891467]
[1732474390276,3.008,3324.5,3324.2,0.8079]
[1732474391349,3.308507,3324.8,3324.2,0.8079]
[1732474391553,3.00784,3324.7,3324.2,0.8079]
[1732474391960,3.00789,3324.6,3324.2,0.8079]
[1732474392157,3.00809,3324.4,3324.2,0.8079]
[1732474392377,3.00809,3324.4,3323.8,0.7911]
[1732474392541,3.00826,3324.2,3323.8,0.7911]
[1732474392894,3.00843,3324.0,3323.8,0.7911]
[1732474394560,3.00836,3324.1,3323.8,0.7911]
[1732474394886,3.00852,3323.9,3323.4,0.7911]
[1732474395553,0.8243,3324.0,3323.4,0.7911]
[1732474395747,3.00852,3323.9,3323.4,0.7911]
[1732474395943,3.00866,3323.8,3323.4,0.7911]
[1732474396177,3.00861,3323.8,3323.4,0.7911]
[1732474396774,3.00852,3323.9,3323.4,0.7911]
[1732474396979,3.00871,3323.7,3323.4,0.7911]
[1732474397387,3.00879,3323.6,3323.4,0.7911]
[1732474397631,3.00879,3323.6,3323.1,0.7635]
[1732474397743,3.00868,3323.8,3323.1,3.47178]
[1732474397943,3.00869,3323.7,3323.1,3.47178]
[1732474398688,3.309442,3323.9,3323.2,2.70822]
[1732474398992,3.00859,3323.9,3323.2,2.70822]
[1732474399278,3.00859,3323.9,3323.1,0.7635]
[1732474399496,3.00859,3323.9,3323.2,2.70818]
[1732474399801,3.00848,3324.0,3323.4,3.47155]
[1732474400100,3.00785,3324.7,3323.7,0.7635]
[1732474400402,3.00763,3324.9,3324.2,0.7635]
[1732474400548,3.00763,3324.9,3324.2,3.47091]
[1732474400747,3.00763,3324.9,3324.2,0.7635]
[1732474400987,3.00789,3324.6,3324.3,0.02979801]
[1732474401190,3.609458,3324.6,3324.3,0.02979801]
[1732474401497,3.609458,3324.6,3324.4,0.02963605]
[1732474401662,3.609458,3324.6,3324.2,0.7635]
[1732474401847,3.609458,3324.6,3324.5,0.02963605]
[1732474402047,3.609458,3324.6,3324.2,0.7635]
[1732474402248,3.00789,3324.6,3324.5,0.02963605]
[1732474402549,3.00801,3324.5,3324.2,0.7635]
[1732474402874,3.82499,3324.6,3324.3,0.02963605]
[1732474403059,3.82499,3324.6,3324.0,0.7635]
[1732474403259,3.82499,3324.6,3324.4,0.02963605]
[1732474403585,4.50826,3324.6,3324.0,3.17021]
[1732474403747,3.82499,3324.6,3324.0,3.17021]
[1732474403947,3.82499,3324.6,3324.1,0.02963605]
[1732474404247,3.00771,3324.8,3324.1,2.43628605]
[1732474404968,0.8171,3324.9,3324.3,2.40651]
[1732474405228,3.00753,3325.0,3324.4,0.79212365]
[1732474405434,3.00761,3324.9,3324.4,0.79212365]
[1732474407025,3.00797,3324.5,3323.6,0.832]
[1732474407236,3.00797,3324.5,3323.9,2.4068]
[1732474407441,3.00806,3324.4,3324.0,0.832]
[1732474407791,3.00806,3324.4,3323.8,2.40683]
[1732474407792,3.79266,3324.4,3323.8,0.832]
[1732474408037,4.093466,3324.4,3323.8,0.832]
[1732474408396,3.00815,3324.3,3323.8,0.832]
[1732474411459,3.79242,3324.7,3323.9,2.40679]
[1732474411608,3.79241,3324.7,3324.0,2.40668]
[1732474411811,3.79226,3324.9,3324.2,0.832]
[1732474412063,3.00751,3325.0,3324.3,2.40645]
[1732474412210,4.0534977,3325.0,3324.4,2.40638]
[1732474412415,4.0534977,3325.0,3324.2,0.832]
[1732474412617,4.0534977,3325.0,3324.4,2.40644]
[1732474413616,3.00763,3324.9,3324.3,2.40649]
[1732474413864,3.00735,3325.2,3324.6,0.832]
[1732474414022,3.00707,3325.5,3324.9,2.40607]
[1732474415246,3.00707,3325.5,3325.0,0.02808385]
[1732474416329,3.00721,3325.4,3325.0,0.02808385]
[1732474416850,3.00721,3325.4,3325.1,0.02808385]
[1732474417049,3.00721,3325.4,3324.7,2.40617]
[1732474417250,3.307961,3325.3,3325.2,0.02808385]
[1732474417559,3.00724,3325.3,3324.6,3.2383]
[1732474417768,3.00724,3325.3,3325.2,0.02808385]
[1732474417947,3.00724,3325.3,3324.8,2.40615]
[1732474417948,3.307964,3325.3,3324.8,2.40615]
[1732474418151,3.00724,3325.3,3325.2,0.02808385]
[1732474418651,3.00724,3325.3,3324.8,2.40615]
[1732474418851,3.00712,3325.5,3325.2,0.02808385]
[1732474419033,3.386292,3325.5,3324.9,2.40608]
[1732474419360,5.35601902,3325.8,3325.3,0.02808385]
[1732474419361,3.00683,3325.8,3325.3,0.02808385]
[1732474419661,3.00683,3325.8,3325.4,0.02789746]
[1732474419845,3.00688,3325.7,3325.4,0.02789746]
[1732474420058,3.00688,3325.7,3325.2,2.40581]
[1732474420259,3.00683,3325.8,3325.5,0.02789746]
[1732474420558,3.00688,3325.7,3325.0,3.23797]
[1732474420773,3.00688,3325.7,3325.6,0.02789746]
[1732474421265,3.00688,3325.7,3325.1,2.40593]
[1732474421473,3.00688,3325.7,3325.6,0.02789746]
[1732474421796,3.00688,3325.7,3325.0,0.832]
[1732474421797,0.6379627,3325.7,3325.0,0.832]
[1732474422064,3.00713,3325.5,3325.0,0.832]
[1732474423324,3.00716,3325.4,3325.0,0.832]
[1732474423664,3.00731,3325.3,3324.7,3.23822]
[1732474430182,3.00731,3325.3,3324.8,0.02636904]
[1732474430365,3.00731,3325.3,3324.9,0.0049527]
[1732474430932,3.00731,3325.3,3325.0,0.02636904]
[1732474431132,0.7846,3325.6,3325.0,0.02636904]
[1732474431355,3.00718,3325.4,3325.0,0.02636904]
[1732474431559,3.00724,3325.3,3325.0,0.02636904]
[1732474432196,3.00724,3325.3,3324.9,0.0049527]
[1732474433685,3.0074,3325.2,3324.9,0.0049527]
[1732474438459,1.06478028,3325.6,3324.9,0.0049527]
[1732474438778,3.00741,3325.2,3324.9,0.0049527]
[1732474439187,3.00745,3325.1,3324.9,0.0049527]
[1732474439969,6.01456,3325.3,3324.9,0.0049527]
[1732474440288,3.00725,3325.3,3324.9,0.0049527]
[1732474440466,3.00739,3325.2,3324.9,0.0049527]
[1732474440664,3.00706,3325.5,3324.9,0.0049527]
[1732474440866,3.00748,3325.1,3324.9,0.0049527]
[1732474442387,3.00726,3325.3,3324.9,0.0049527]
[1732474442753,3.0074,3325.2,3324.9,0.0049527]
[1732474444894,3.41440403,3325.4,3324.9,0.0049527]
[1732474445193,4.07184028,3325.6,3324.9,2.4110327]
[1732474445365,3.00707,3325.5,3325.0,0.7769]
[1732474445768,3.00716,3325.4,3325.0,0.7769]
[1732474447216,3.0,3325.8,3325.1,2.40593]
[1732474447513,3.0,3325.8,3325.3,2.40577]
[1732474447721,3.0,3325.8,3325.4,2.40571]
[1732474447915,3.00674,3325.9,3325.4,2.40571]
[1732474448215,0.300674,3325.8,3325.2,3.21041]
[1732474448413,0.300674,3325.8,3325.3,2.40577]
[1732474449115,3.00661,3326.0,3325.5,0.8046]
[1732474449511,0.55,3325.9,3325.5,0.8046]
[1732474449824,3.0,3326.1,3325.5,3.21021]
[1732474450007,3.00626,3326.4,3325.8,2.40542]
[1732474450179,3.76457,3326.5,3325.9,3.20996]
[1732474450380,5.81257639,3326.6,3325.9,3.20996]
[1732474450616,2.80647639,3326.6,3325.9,3.20996]
[1732474450823,3.46355603,3326.6,3326.0,2.40527]
[1732474450990,3.46355603,3326.6,3326.1,2.4052]
[1732474451187,3.46355603,3326.6,3326.2,2.40512]
[1732474451417,2.80647639,3326.6,3325.9,3.20993]
[1732474451932,5.81255639,3326.6,3325.9,3.20993]
[1732474452092,3.00617,3326.5,3325.9,3.20993]
[1732474452922,3.00617,3326.5,3325.9,0.8046]
[1732474452923,3.00638,3326.3,3325.9,0.8046]
[1732474453124,3.00661,3326.0,3325.6,0.8046]
[1732474455019,3.00653,3326.1,3325.6,0.8046]
[1732474455420,0.850638,3326.2,3325.6,3.21012]
[1732474455597,0.55,3326.2,3325.6,0.8046]
[1732474455793,0.55,3326.2,3325.7,2.40548]
[1732474456134,3.00644,3326.2,3325.6,0.8046]
[1732474456427,3.00653,3326.1,3325.6,0.8046]
[1732474457006,3.00653,3326.1,3325.3,3.16543]
[1732474457214,0.55,3326.1,3325.3,0.7597]
[1732474457525,3.00681,3325.8,3325.0,0.7597]
[1732474457797,3.00721,3325.4,3324.9,0.0049527]
[1732474458348,3.00729,3325.3,3324.9,0.0049527]
[1732474458500,3.00721,3325.4,3324.9,0.0049527]
[1732474459155,3.00724,3325.3,3324.9,0.0049527]
[1732474460253,3.00716,3325.4,3324.9,0.0049527]
[1732474463391,0.55,3325.4,3324.9,0.0049527]
[1732474463597,3.00733,3325.3,3324.9,0.0049527]
[1732474463759,3.00733,3325.2,3324.9,0.0049527]
[1732474464173,0.437272,3325.3,3324.9,0.0049527]
[1732474464559,0.437272,3325.3,3324.9,2.4110327]
[1732474464890,0.55,3325.4,3324.9,2.4110327]
[1732474465320,3.55721,3325.4,3324.9,0.0049527]
[1732474465446,3.00724,3325.3,3324.9,0.0049527]
[1732474469409,0.55,3325.4,3324.9,0.0049527]
[1732474469615,0.55,3325.4,3324.9,2.4110327]
[1732474469762,4.04820158,3325.4,3324.9,0.0049527]
[1732474470107,3.00728,3325.3,3324.9,0.0049527]
[1732474471268,1.04104158,3325.4,3324.9,0.0049527]
[1732474471598,4.04821158,3325.4,3324.9,0.0049527]
[1732474472086,1.04104158,3325.4,3324.9,2.4110127]
[1732474473968,4.04825158,3325.4,3324.9,0.0049527]
[1732474474183,0.48638516,3325.3,3324.9,0.0049527]
[1732474475609,1.04104158,3325.4,3325.1,2.40589]
[1732474475810,0.55,3325.4,3325.1,2.40589]
[1732474476125,0.55,3325.6,3325.1,2.40589]
[1732474476330,1.62401979,3325.6,3325.1,2.40589]
[1732474476647,1.62401979,3325.6,3325.2,2.40582]
[1732474476790,1.62401979,3325.6,3325.3,2.40578]
[1732474477299,1.62401979,3325.6,3325.1,2.4059]
[1732474477617,1.62401979,3325.6,3325.2,2.40586]
[1732474478028,0.7548,3326.0,3325.3,2.40579]
[1732474478332,3.00637,3326.3,3325.7,3.21216]
[1732474478837,0.7548,3326.4,3325.8,2.40543]
[1732474479634,3.7548,3326.4,3325.7,3.21216]
[1732474480141,3.0,3326.2,3325.7,3.21216]
[1732474480294,6.9799463,3326.2,3325.7,0.8067]
[1732474481490,3.9735063,3326.2,3325.7,3.2122]
[1732474489849,3.9735063,3326.2,3325.8,2.40543]
[1732474491255,0.976115,3326.2,3325.9,2.40536]
[1732474491545,0.55,3326.3,3325.9,2.40536]
[1732474493020,0.7548,3326.4,3325.9,2.40536]
[1732474493227,3.55,3326.5,3326.0,2.40524]
[1732474493425,3.55,3326.5,3326.1,2.4052]
[1732474494108,3.0,3326.5,3325.7,0.8067]
[1732474494309,5.0164414,3326.6,3326.1,2.40519]
[1732474495209,5.59447554,3326.6,3326.1,2.40519]
[1732474498349,0.7639,3326.7,3326.1,2.40519]
[1732474498558,1.6737889,3326.7,3326.2,0.7773]
[1732474498710,0.9098889,3326.7,3326.2,0.7773]
[1732474499477,0.55,3326.9,3326.4,2.40499]
[1732474499643,0.9098889,3326.8,3326.4,2.40499]
[1732474501292,0.9098889,3326.8,3326.2,0.7773]
[1732474501446,0.9098889,3326.6,3326.2,0.7773]
[1732474501778,0.9098889,3326.6,3326.3,2.40506]
[1732474503088,0.9098889,3326.6,3326.3,4.81008]
[1732474503391,0.9098889,3326.6,3326.3,2.40502]
[1732474504660,0.9098889,3326.4,3326.2,0.7822527]
[1732474504864,3.9161489,3326.4,3326.2,0.0049527]
[1732474505415,3.00634,3326.3,3326.2,0.0049527]
[1732474505576,4.34954,3326.3,3326.2,0.0049527]
[1732474510449,5.2594289,3326.3,3326.2,0.0049527]
[1732474510611,1.3432,3326.3,3326.2,0.0049527]
[1732474510814,0.9098889,3326.4,3326.2,0.0049527]
[1732474512526,3.00622,3326.5,3326.2,0.0049527]
[1732474512720,0.9098889,3326.3,3326.2,0.0049527]
[1732474513489,5.2700289,3326.3,3326.2,0.0049527]
[1732474513690,6.09765379,3326.3,3326.2,0.0049527]
[1732474513890,5.18776489,3326.3,3326.2,0.0049527]
[1732474514890,8.18776489,3326.3,3326.2,0.0049527]
[1732474515314,7.63776489,3326.3,3326.2,0.0049527]
[1732474519235,8.18776489,3326.3,3326.2,0.0049527]
[1732474519387,8.78620483,3326.3,3326.2,0.0049527]
[1732474519695,8.90581534,3326.3,3326.2,0.0049527]
[1732474520332,10.92289367,3326.3,3326.2,0.0049527]
[1732474520643,9.65484322,3326.3,3326.2,0.0049527]
[1732474522792,8.82721833,3326.3,3326.2,0.0049527]
[1732474523227,5.02341833,3326.3,3326.2,0.0049527]
[1732474523426,3.00625,3326.4,3326.2,0.0049527]
[1732474524324,3.00625,3326.4,3326.2,0.8119527]
[1732474524524,3.80988,3326.6,3326.2,0.8119527]
[1732474524525,3.00608,3326.6,3326.2,0.8119527]
[1732474525899,3.00616,3326.5,3326.2,0.8119527]
[1732474528042,3.00634,3326.3,3326.2,0.0049527]
[1732474528223,0.80293183,3326.5,3326.2,0.0049527]
[1732474528430,3.00629,3326.4,3326.2,0.0049527]
[1732474531499,3.00634,3326.3,3326.2,0.0049527]
[1732474532345,6.00621,3326.5,3326.2,0.0049527]
[1732474533225,3.0,3326.5,3326.2,0.0049527]
[1732474533759,3.00626,3326.4,3326.2,0.0049527]
[1732474538855,3.0,3326.5,3326.2,0.0049527]
[1732474539060,6.00622,3326.5,3326.2,0.0049527]
[1732474539654,3.00634,3326.3,3326.2,0.0049527]
[1732474540450,0.90999694,3326.3,3326.2,0.0049527]
[1732474541324,3.91633694,3326.3,3326.2,0.0049527]
[1732474543844,0.90999694,3326.3,3326.2,0.0049527]
[1732474551282,3.90999694,3326.7,3326.2,0.8154527]
[1732474551591,3.90999694,3326.7,3326.2,3.2205427]
[1732474552041,0.00571104,3326.3,3326.2,3.2205427]
[1732474553474,0.00571104,3326.3,3326.2,3.44346283]
[1732474555331,0.00571104,3326.3,3326.2,3.2205427]
[1732474555571,0.00571104,3326.3,3326.2,3.44335099]
[1732474557658,0.00571104,3326.3,3326.2,4.03137616]
[1732474557995,0.00571104,3326.3,3326.2,4.58137616]
[1732474561291,0.00571104,3326.3,3326.2,4.03137616]
[1732474563692,0.00571104,3326.3,3326.2,1.62628616]
[1732474563854,0.00571104,3326.3,3326.2,0.81578616]
[1732474564754,0.00571104,3326.3,3326.2,0.81083346]
[1732474564956,0.00571104,3326.3,3326.2,0.81031093]
[1732474565355,3.01205104,3326.3,3326.2,0.22228576]
[1732474565667,3.31323814,3326.3,3326.2,0.22228576]
[1732474569064,4.06753814,3326.3,3326.2,0.22228576]
[1732474569263,1.06119814,3326.3,3325.3,2.40579]
[1732474569491,3.00665,3326.0,3325.4,0.22262531]
[1732474569674,3.00671,3325.9,3325.5,0.22262531]
[1732474569887,3.00671,3325.9,3325.6,0.22262531]
[1732474570074,3.00671,3325.9,3325.7,0.22262531]
[1732474570269,3.00671,3325.9,3325.8,0.22262531]
[1732474571377,3.00657,3326.1,3325.8,0.22262531]
[1732474571603,0.3075896,3326.2,3325.9,0.22262531]
[1732474571786,3.00653,3326.1,3326.0,0.22262531]
[1732474571999,3.00643,3326.2,3326.0,0.22262531]
[1732474572313,0.00571104,3326.3,3326.1,0.22262531]
[1732474572603,0.00571104,3326.3,3326.2,0.22262531]
[1732474574008,3.01205104,3326.3,3326.2,0.22262531]
[1732474574192,0.00571104,3326.3,3326.2,0.22262531]
[1732474576529,0.00571104,3326.3,3325.9,2.10467]
[1732474576700,0.00571104,3326.3,3326.0,0.2226086]
[1732474576898,0.00571104,3326.3,3326.1,0.2226086]
[1732474577133,0.00571104,3326.3,3326.2,0.2226086]
[1732474577398,3.01205104,3326.3,3326.2,0.2226086]
[1732474578409,0.00571104,3326.3,3326.2,0.2226086]
[1732474580435,3.01205104,3326.3,3326.2,0.2226086]
[1732474580999,0.00571104,3326.3,3326.2,0.2226086]
[1732474582529,0.00571104,3326.3,3326.2,2.3271086]
[1732474583913,0.00571104,3326.3,3326.2,0.2226086]
[1732474585762,3.80305104,3326.3,3326.2,0.2226086]
[1732474587467,3.80305104,3326.3,3326.0,0.0049527]
[1732474588262,3.01205104,3326.3,3326.0,0.0049527]
[1732474588618,0.00571104,3326.3,3326.0,0.0049527]
[1732474589963,0.00571104,3326.3,3326.1,0.766]
[1732474592125,0.00571104,3326.3,3326.0,0.0049527]
[1732474596776,3.01206104,3326.3,3326.0,0.0049527]
[1732474597838,3.83298104,3326.3,3326.0,0.0049527]
[1732474599979,0.82661104,3326.3,3326.0,0.0049527]
[1732474603195,0.82661104,3326.3,3326.0,2.1095727]
[1732474605185,0.82661104,3326.3,3326.0,0.0049527]
[1732474606347,1.73650426,3326.3,3326.0,0.0049527]
[1732474608675,0.91560426,3326.3,3326.0,0.0049527]
[1732474610295,0.91560426,3326.3,3326.0,2.1095727]
[1732474610448,0.91560426,3326.3,3326.0,0.0049527]
[1732474612484,0.91560426,3326.3,3326.0,2.1095727]
[1732474612689,0.91560426,3326.3,3326.0,0.0049527]
[1732474619017,0.91560426,3326.3,3326.1,0.59346913]
[1732474621217,3.92200426,3326.3,3326.1,0.59346913]
[1732474621423,0.91560426,3326.3,3326.1,0.59346913]
[1732474622818,0.91406564,3326.3,3326.1,0.59346913]
[1732474623758,3.92043564,3326.3,3326.1,0.59346913]
[1732474624949,0.91406564,3326.3,3326.1,0.59346913]
[1732474627332,3.92044564,3326.3,3326.1,0.59346913]
[1732474628060,3.92040564,3326.3,3326.1,0.59346913]
[1732474628859,3.00643,3326.2,3326.0,0.0049527]
[1732474629064,4.67771322,3326.1,3326.0,0.0049527]
[1732474630437,7.67771322,3326.1,3326.0,0.0049527]
[1732474633763,6.76782,3326.1,3326.0,0.0049527]
[1732474634102,8.73253622,3326.1,3326.0,0.0049527]
[1732474645510,7.822643,3326.1,3326.0,0.0049527]
[1732474645713,8.73253622,3326.1,3326.0,0.0049527]
[1732474652562,9.28253622,3326.1,3326.0,2.7e-06]
[1732474653059,10.19242944,3326.1,3326.0,2.7e-06]
[1732474653259,10.29242944,3326.1,3326.0,2.7e-06]
[1732474653719,3.55,3325.3,3324.2,0.59338039]
[1732474654065,3.00815,3324.3,3324.2,0.59338039]
[1732474654240,3.00815,3324.3,3324.0,0.8202]
[1732474654241,3.91804322,3324.3,3324.0,0.8202]
[1732474654668,3.00833,3324.1,3324.0,0.8202]
[1732474655123,3.91822322,3324.1,3323.4,0.8202]
[1732474655322,3.91846322,3323.9,3323.4,0.8202]
[1732474655631,3.00861,3323.8,3323.4,0.8202]
[1732474656354,0.90989322,3323.9,3323.4,0.8202]
[1732474656522,3.00848,3324.0,3323.4,0.8202]
[1732474657121,0.90989322,3324.1,3323.6,0.8202]
[1732474657325,3.00826,3324.2,3323.6,0.8202]
[1732474657573,3.00826,3324.2,3323.7,0.8202]